bitfinex-derivatives/quotes_SOLF0:USTF0_20250124
["timestamp","ask_amount","ask_price","bid_price","bid_amount"]
[1737700841741,3.8292,261.19,261.16,0.02810647]
[1737700841941,14.65429517,261.2,261.01,1.279]
[1737700843042,14.65429517,261.2,261.02,3.8316]
[1737700843242,0.02901708,261.13,261.08,0.02626905]
[1737700843438,3.8304,261.11,261.08,0.02626905]
[1737700844336,0.02901708,261.13,261.08,0.02626905]
[1737700846849,0.02901708,261.13,261.1,3.8305]
[1737700847151,0.02901708,261.13,261.08,0.02626905]
[1737700847351,0.02901708,261.13,261.08,3.85696905]
[1737700848045,14.65429517,261.25,261.08,3.85696905]
[1737700848046,14.65429517,261.25,261.08,0.02626905]
[1737700848344,14.65429517,261.3,261.07,14.65429517]
[1737700848546,14.65429517,261.3,261.16,3.8295]
[1737700848745,14.65429517,261.3,261.08,1.2648]
[1737700848951,14.65429517,261.3,261.09,1.221]
[1737700849347,0.02607989,261.22,261.17,0.02594968]
[1737700849748,0.02607989,261.22,261.19,3.8291]
[1737700849949,0.02607989,261.22,261.17,0.02594968]
[1737700850350,3.85487989,261.22,261.17,0.02594968]
[1737700852554,0.02607989,261.22,261.17,0.02594968]
[1737700853152,3.829,261.2,261.17,0.02594968]
[1737700853454,0.02607989,261.22,261.17,0.02594968]
[1737700853952,3.8292,261.19,261.17,0.02594968]
[1737700855553,0.02607989,261.22,261.17,0.02594968]
[1737700855554,3.8291,261.2,261.17,0.02594968]
[1737700855753,0.02607989,261.22,261.17,0.02594968]
[1737700856757,0.02607989,261.22,261.17,3.85534968]
[1737700857255,0.02607989,261.22,261.17,0.02594968]
[1737700857652,3.829,261.2,261.17,0.02594968]
[1737700857852,0.02607989,261.22,261.17,0.02594968]
[1737700858057,3.8293,261.18,261.17,0.02594968]
[1737700858255,14.65429517,261.42,261.17,4.54]
[1737700858555,4.2021,261.55,261.28,14.65429517]
[1737700858755,4.2021,261.55,261.34,14.65429517]
[1737700859157,3.8246,261.51,261.34,14.65429517]
[1737700859459,0.02568609,261.45,261.4,0.02591819]
[1737700861962,4.2021,261.55,261.44,14.65429517]
[1737700862158,3.8241,261.54,261.44,14.65429517]
[1737700862760,4.2021,261.55,261.44,14.65429517]
[1737700863162,0.02654605,261.52,261.47,0.0283287]
[1737700864258,2.981,261.64,261.49,14.65429517]
[1737700864466,1.3271,261.63,261.49,14.65429517]
[1737700865261,1.3271,261.63,261.54,14.65429517]
[1737700865660,0.02776458,261.59,261.54,14.65429517]
[1737700865858,0.02776458,261.59,261.53,0.02813945]
[1737700866469,3.824,261.55,261.53,0.02813945]
[1737700867163,0.02776458,261.59,261.44,14.65429517]
[1737700867361,153.05829525,261.58,261.38,14.65429517]
[1737700868365,0.02900229,261.51,261.45,0.02551453]
[1737700868956,0.02900229,261.51,261.38,14.65429517]
[1737700869161,0.02900229,261.51,261.31,16.28399517]
[1737700869360,14.65429517,261.55,261.31,16.28399517]
[1737700869565,14.65429517,261.55,261.32,3.8272]
[1737700869566,3.8258,261.42,261.32,3.8272]
[1737700870065,0.02545874,261.4,261.34,0.02446347]
[1737700871167,3.8264,261.38,261.34,0.02446347]
[1737700871362,0.02545874,261.4,261.34,0.02446347]
[1737700871768,3.828,261.27,261.21,16.32509517]
[1737700872269,153.05829525,261.43,261.21,16.32509517]
[1737700872561,3.8277,261.29,261.21,16.32509517]
[1737700872968,3.8282,261.26,261.22,0.02592834]
[1737700873166,154.34229525,261.42,261.21,14.65429517]
[1737700873466,0.02753389,261.26,261.21,14.68149806]
[1737700873668,3.828,261.27,261.21,14.65429517]
[1737700873859,0.02733824,261.26,261.21,0.02579825]
[1737700875962,0.02733824,261.26,261.21,14.68009342]
[1737700876171,153.05829525,261.41,261.21,14.68009342]
[1737700876369,153.05829525,261.41,261.26,14.65429517]
[1737700877263,0.0257746,261.36,261.31,0.02883201]
[1737700877869,0.0257746,261.36,261.33,3.8271]
[1737700878069,0.0257746,261.36,261.31,14.68312718]
[1737700881070,0.0257746,261.36,261.31,0.02883201]
[1737700881370,3.8268,261.35,261.31,0.02883201]
[1737700881670,3.8271,261.33,261.31,0.02883201]
[1737700882870,0.0257746,261.36,261.21,14.65429517]
[1737700883075,3.8276,261.3,261.21,14.65429517]
[1737700883677,3.8272,261.33,261.22,3.8287]
[1737700883878,153.05829525,261.45,261.21,14.65429517]
[1737700884176,3.8275,261.31,261.21,18.48309517]
[1737700884477,0.02901265,261.36,261.3,0.02517268]
[1737700884677,153.05829525,261.44,261.21,14.65429517]
[1737700884978,0.02688206,261.36,261.3,0.02828827]
[1737700885173,0.02688206,261.36,261.21,14.65429517]
[1737700885380,0.02688206,261.36,261.3,0.02894446]
[1737700885580,3.8262,261.4,261.31,3.8274]
[1737700885780,0.02478803,261.36,261.3,0.02894446]
[1737700887181,0.02478803,261.36,261.3,3.85634446]
[1737700888181,0.02478803,261.36,261.31,14.65429517]
[1737700888380,1.275,261.47,261.31,14.65429517]
[1737700888577,1.275,261.47,261.36,14.65429517]
[1737700889182,1.2645,261.56,261.36,14.65429517]
[1737700889377,3.8247,261.5,261.36,14.65429517]
[1737700889579,0.02832843,261.45,261.39,0.02533318]
[1737700890478,3.826,261.41,261.39,0.02533318]
[1737700890881,0.02832843,261.45,261.3,14.65429517]
[1737700891078,14.65429517,261.51,261.3,14.65429517]
[1737700892083,0.02622133,261.42,261.36,0.02922956]
[1737700892283,3.8263,261.39,261.36,0.02922956]
[1737700892680,0.02622133,261.42,261.36,0.02922956]
[1737700892884,3.8261,261.4,261.36,0.02922956]
[1737700893885,0.02622133,261.42,261.36,0.02922956]
[1737700894085,3.8263,261.39,261.36,0.02922956]
[1737700895285,3.8265,261.38,261.36,0.02922956]
[1737700898997,3.8265,261.37,261.36,0.02922956]
[1737700899287,2.5165,261.41,261.2,22.86985691]
[1737700899492,2.5165,261.41,261.2,14.65429517]
[1737700899493,153.05829525,261.4,261.2,14.65429517]
[1737700900492,3.8278,261.28,261.27,0.02935757]
[1737700902899,3.829,261.2,261.15,2.22378469]
[1737700903091,14.65429517,261.27,261.14,100.83883556]
[1737700903890,14.65429517,261.27,261.12,126.04854445]
[1737700903891,3.8299,261.14,261.11,100.83883556]
[1737700904200,14.65429517,261.22,261.11,100.83883556]
[1737700904593,3.8295,261.17,261.11,100.83883556]
[1737700904798,0.027777,261.19,261.11,100.83883556]
[1737700905093,3.8295,261.17,261.11,100.83883556]
[1737700905290,0.027777,261.19,261.11,100.83883556]
[1737700905596,3.8274,261.31,261.23,3.8285]
[1737700905792,3.8274,261.31,261.2,14.65429517]
[1737700906094,14.65429517,261.38,261.2,14.65429517]
[1737700906395,14.65429517,261.38,261.16,2.9635]
[1737700906396,3.8277,261.29,261.16,2.9635]
[1737700906999,0.02687125,261.25,261.2,0.02919687]
[1737700907295,3.8276,261.3,261.16,2.9635]
[1737700907485,0.02519605,261.25,261.2,0.0279063]
[1737700907688,14.65429517,261.38,261.16,2.9635]
[1737700907887,0.02539613,261.25,261.2,0.02923248]
[1737700908196,14.65429517,261.33,261.16,2.9635]
[1737700908197,3.8288,261.22,261.16,2.9635]
[1737700908397,3.8288,261.22,261.2,0.02699682]
[1737700909091,3.8285,261.24,261.2,0.02699682]
[1737700909296,0.02457483,261.25,261.2,0.02699682]
[1737700910297,167.71259042,261.38,261.2,0.02699682]
[1737700910799,167.71259042,261.38,261.16,2.9635]
[1737700910998,167.71259042,261.38,261.16,4.2226]
[1737700911198,3.828,261.27,261.16,4.2226]
[1737700911397,3.828,261.27,261.24,0.02658581]
[1737700911796,0.02639615,261.28,261.24,0.02658581]
[1737700912095,3.8281,261.26,261.24,0.02658581]
[1737700912996,3.85429615,261.28,261.24,0.02658581]
[1737700913799,3.828,261.27,261.24,0.02658581]
[1737700914992,0.02639615,261.28,261.24,0.02658581]
[1737700915793,0.02639615,261.28,261.24,3.85498581]
[1737700916099,0.02639615,261.28,261.24,0.02658581]
[1737700918203,3.85429615,261.28,261.24,0.02658581]
[1737700918502,0.02639615,261.28,261.24,0.02658581]
[1737700919305,3.85429615,261.28,261.24,0.02658581]
[1737700919500,0.02639615,261.28,261.24,0.02658581]
[1737700922907,3.8281,261.26,261.24,0.02658581]
[1737700923402,0.02639615,261.28,261.12,8.30305429]
[1737700923601,3.8295,261.17,261.11,109.14188985]
[1737700923799,3.8295,261.17,261.11,100.83883556]
[1737700924710,3.8295,261.17,261.12,0.02500071]
[1737700925509,0.02464469,261.18,261.12,0.02500071]
[1737700927104,3.8295,261.17,261.12,0.02500071]
[1737700928806,0.02464469,261.18,261.12,0.02500071]
[1737700929110,3.8299,261.15,261.12,0.02500071]
[1737700929306,0.02464469,261.18,261.12,0.02500071]
[1737700929515,153.05829525,261.27,261.14,14.65429517]
[1737700929811,153.05829525,261.36,261.14,14.65429517]
[1737700930010,3.8271,261.33,261.21,3.8288]
[1737700930210,153.05829525,261.36,261.21,3.8288]
[1737700930608,3.8275,261.31,261.26,0.02924481]
[1737700930814,0.02551642,261.31,261.26,0.02924481]
[1737700931413,0.02551642,261.31,261.26,3.85734481]
[1737700931712,0.02551642,261.31,261.26,0.02924481]
[1737700934415,157.26379525,261.51,261.29,14.65429517]
[1737700934814,157.26379525,261.51,261.3,1.3149]
[1737700935313,157.26379525,261.51,261.34,14.65429517]
[1737700935513,0.02915,261.43,261.38,0.02487187]
[1737700936806,3.8261,261.4,261.38,0.02487187]
[1737700940119,3.85495,261.43,261.38,0.02487187]
[1737700940324,0.02915,261.43,261.38,0.02487187]
[1737700941223,4.2055,261.51,261.41,3.8259]
[1737700941416,153.05829525,261.58,261.34,14.65429517]
[1737700941417,153.05829525,261.58,261.36,3.92]
[1737700941621,155.56149525,261.58,261.36,3.92]
[1737700942424,0.02523848,261.49,261.43,0.0268368]
[1737700943525,3.8254,261.45,261.43,0.0268368]
[1737700944725,0.02523848,261.49,261.31,3.92]
[1737700945028,3.8265,261.37,261.31,3.92]
[1737700945927,3.85163129,261.37,261.31,3.94587654]
[1737700946829,3.8267,261.36,261.31,0.02587654]
[1737700947029,0.02513129,261.37,261.31,0.02587654]
[1737700947731,3.8269,261.35,261.31,0.02587654]
[1737700948828,3.827,261.34,261.31,0.02587654]
[1737700949430,3.8272,261.33,261.31,0.02587654]
[1737700951326,153.05829525,261.36,261.18,16.36469517]
[1737700951633,154.71839525,261.35,261.18,16.36469517]
[1737700951932,154.71839525,261.35,261.19,0.6907165]
[1737700952131,3.8271,261.33,261.23,3.8284]
[1737700952327,154.34399525,261.42,261.23,14.65429517]
[1737700952631,0.0286363,261.31,261.3,3.8275]
[1737700952830,154.34399525,261.42,261.25,0.02827556]
[1737700953028,154.34399525,261.42,261.24,0.69058799]
[1737700953426,153.05829525,261.55,261.28,14.65429517]
[1737700953622,153.05829525,261.55,261.15,11.46]
[1737700953623,153.05829525,261.54,261.34,14.65429517]
[1737700954027,0.02729079,261.47,261.41,0.02696958]
[1737700956335,3.8257,261.43,261.41,0.02696958]
[1737700957236,3.8254,261.45,261.41,0.02696958]
[1737700957437,0.02729079,261.47,261.41,0.02696958]
[1737700959226,0.02729079,261.47,261.43,3.8256]
[1737700960734,0.02729079,261.47,261.45,3.8252]
[1737700960929,153.05829525,261.53,261.42,14.65429517]
[1737700961128,153.05829525,261.53,261.42,16.33479517]
[1737700961326,153.05829525,261.53,261.44,3.8254]
[1737700962135,0.02665761,261.51,261.44,3.8254]
[1737700963137,0.02665761,261.51,261.45,3.8253]
[1737700963339,0.02665761,261.51,261.42,17.64869517]
[1737700963540,0.02665761,261.51,261.47,14.65429517]
[1737700963739,153.05829525,261.64,261.49,3.8247]
[1737700963936,3.8235,261.58,261.47,14.65429517]
[1737700964135,153.05829525,261.64,261.47,14.65429517]
[1737700964733,153.05829525,261.64,261.43,1.2861]
[1737700965038,0.02907875,261.58,261.53,0.02563402]
[1737700967240,3.85257875,261.58,261.53,0.02563402]
[1737700967437,0.02907875,261.58,261.53,0.02563402]
[1737700967641,3.824,261.55,261.53,0.02563402]
[1737700968843,0.02907875,261.58,261.38,100.83883556]
[1737700968844,14.65429517,261.56,261.38,100.83883556]
[1737700969045,2.8735,261.54,261.38,100.83883556]
[1737700969944,0.02485503,261.49,261.43,0.02849761]
[1737700970447,3.8257,261.43,261.38,100.83883556]
[1737700971545,3.85084052,261.43,261.38,0.02765228]
[1737700973143,3.8258,261.42,261.38,0.02765228]
[1737700974647,3.50105,261.42,261.38,0.02765228]
[1737700975648,0.02514052,261.43,261.38,0.02765228]
[1737700976546,0.02514052,261.43,261.26,180.08866]
[1737700976745,14.65429517,261.46,261.24,33.28004478]
[1737700976944,14.65429517,261.46,261.24,114.29406914]
[1737700977248,14.65429517,261.56,261.24,114.29406914]
[1737700977249,224.61829525,261.81,261.44,14.65429517]
[1737700977445,2.9325,261.68,261.49,14.65429517]
[1737700977645,6.7545,261.68,261.53,3.8241]
[1737700977948,0.02929703,261.61,261.56,0.02883537]
[1737700978142,3.8232,261.6,261.56,0.02883537]
[1737700978347,0.02929703,261.61,261.56,0.02883537]
[1737700978748,3.8233,261.59,261.56,0.02883537]
[1737700978949,0.02929703,261.61,261.56,0.02883537]
[1737700979749,3.8232,261.6,261.56,0.02883537]
[1737700979950,0.02929703,261.61,261.56,0.02883537]
[1737700981551,3.8235,261.58,261.56,0.02883537]
[1737700981850,1.2493,261.57,261.44,14.65429517]
[1737700982354,3.8242,261.53,261.44,14.65429517]
[1737700982849,0.02783231,261.51,261.46,0.02768733]
[1737700983446,3.85233231,261.51,261.46,0.02768733]
[1737700983648,0.02783231,261.51,261.46,0.02768733]
[1737700984047,3.8248,261.49,261.46,0.02768733]
[1737700984547,0.02783231,261.51,261.46,0.02768733]
[1737700984850,3.85243231,261.51,261.46,0.02768733]
[1737700985250,0.02783231,261.51,261.46,0.02768733]
[1737700985951,2.9325,261.68,261.5,14.65429517]
[1737700986348,3.8239,261.55,261.5,14.65429517]
[1737700987048,0.02580039,261.55,261.5,14.68256707]
[1737700987745,0.02580039,261.55,261.5,0.0282719]
[1737700988449,3.8241,261.54,261.5,0.0282719]
[1737700988650,0.02580039,261.55,261.5,0.0282719]
[1737700989857,3.8243,261.52,261.5,0.0282719]
[1737700990052,0.02580039,261.55,261.5,0.0282719]
[1737700990450,3.8241,261.54,261.5,0.0282719]
[1737700990650,0.02580039,261.55,261.5,0.0282719]
[1737700991058,3.8243,261.52,261.5,0.0282719]
[1737700991659,0.02580039,261.55,261.5,0.0282719]
[1737700991857,3.8241,261.54,261.5,0.0282719]
[1737700992259,0.02580039,261.55,261.5,0.0282719]
[1737700992460,3.8242,261.53,261.5,0.0282719]
[1737700992860,0.02580039,261.55,261.5,0.0282719]
[1737700993556,3.84970039,261.55,261.5,0.0282719]
[1737700993861,0.02580039,261.55,261.5,0.0282719]
[1737700994762,3.84980039,261.55,261.5,0.0282719]
[1737700995064,0.02580039,261.55,261.5,0.0282719]
[1737700996765,3.8243,261.52,261.5,0.0282719]
[1737700997763,0.02580039,261.55,261.5,0.0282719]
[1737700997965,3.8245,261.51,261.5,0.0282719]
[1737700998262,0.02580039,261.55,261.5,0.0282719]
[1737700999063,3.8244,261.52,261.5,0.0282719]
[1737700999660,0.02580039,261.55,261.5,0.0282719]
[1737700999963,3.8245,261.51,261.5,0.0282719]
[1737701001065,3.8242,261.53,261.5,0.0282719]
[1737701001267,0.02580039,261.55,261.5,0.0282719]
[1737701002367,3.824,261.54,261.5,0.0282719]
[1737701003468,0.02580039,261.55,261.5,0.0282719]
[1737701003671,0.02580039,261.55,261.54,9.11103017]
[1737701006571,0.02580039,261.55,261.5,0.0282719]
[1737701006770,3.824,261.54,261.5,0.0282719]
[1737701007170,3.8242,261.53,261.5,0.0282719]
[1737701008471,0.02580039,261.55,261.5,0.0282719]
[1737701008772,3.8244,261.52,261.5,0.0282719]
[1737701013880,3.8245,261.51,261.5,0.0282719]
[1737701015079,0.02580039,261.55,261.43,100.83883556]
[1737701015281,3.8255,261.44,261.43,100.83883556]
[1737701016180,11.97363017,261.54,261.43,100.83883556]
[1737701016380,0.02435909,261.46,261.43,100.83883556]
[1737701017679,0.02435909,261.46,261.41,9.13847481]
[1737701018979,0.02435909,261.46,261.42,3.8257]
[1737701019184,0.02435909,261.46,261.41,9.13847481]
[1737701021283,0.02435909,261.46,261.41,0.02744464]
[1737701021587,3.84955909,261.46,261.41,0.02744464]
[1737701021888,0.02435909,261.46,261.41,0.02744464]
[1737701022285,3.8254,261.45,261.41,0.02744464]
[1737701022480,0.02435909,261.46,261.41,0.02744464]
[1737701024591,3.8254,261.45,261.41,0.02744464]
[1737701024890,0.02435909,261.46,261.41,0.02744464]
[1737701026791,3.84965909,261.46,261.41,0.02744464]
[1737701027994,0.02435909,261.46,261.41,0.02744464]
[1737701028190,3.8253,261.45,261.41,0.02744464]
[1737701028391,0.02435909,261.46,261.41,0.02744464]
[1737701033995,9.11103017,261.45,261.31,100.83883556]
[1737701034298,1.2331,261.44,261.31,100.83883556]
[1737701034997,1.2331,261.44,261.39,3.8262]
[1737701035296,0.02833749,261.4,261.39,3.8262]
[1737701035494,153.05829525,261.51,261.33,9.11103017]
[1737701035695,0.02827076,261.42,261.33,9.11103017]
[1737701036098,0.02827076,261.42,261.39,3.8262]
[1737701036598,0.02827076,261.42,261.33,9.11103017]
[1737701038198,0.02827076,261.42,261.37,3.8264]
[1737701038394,0.02827076,261.42,261.33,9.11103017]
[1737701038699,0.02827076,261.42,261.4,3.826]
[1737701039100,1.2331,261.53,261.45,3.8252]
[1737701039600,2.8626,261.54,261.45,3.8252]
[1737701039799,9.11103017,261.58,261.41,3.8259]
[1737701040000,9.11103017,261.58,261.37,12.99103017]
[1737701040300,0.02506356,261.52,261.47,0.02690818]
[1737701040699,9.11103017,261.5,261.34,108.82043556]
[1737701040900,3.8251,261.47,261.37,3.8265]
[1737701041398,1.5717,261.53,261.34,108.82043556]
[1737701041591,9.11103017,261.5,261.34,108.82043556]
[1737701041902,0.02907258,261.45,261.34,108.82043556]
[1737701042302,0.02907258,261.45,261.41,3.8259]
[1737701042505,0.02907258,261.45,261.34,7.9816]
[1737701042804,0.02907258,261.45,261.38,3.8262]
[1737701044708,0.02907258,261.45,261.36,3.8265]
[1737701045009,0.02907258,261.45,261.34,7.9816]
[1737701045309,0.02907258,261.45,261.34,6.7528]
[1737701045907,0.02907258,261.45,261.34,1.582]
[1737701046108,9.11103017,261.42,261.32,100.83883556]
[1737701046508,3.8268,261.35,261.32,100.83883556]
[1737701046709,0.02540376,261.4,261.32,100.83883556]
[1737701047009,9.11103017,261.38,261.32,100.83883556]
[1737701047308,3.827,261.34,261.32,100.83883556]
[1737701047604,9.11103017,261.38,261.29,100.83883556]
[1737701047812,3.8274,261.31,261.29,100.83883556]
[1737701049210,3.8277,261.29,261.27,126.04854445]
[1737701050010,9.11103017,261.39,261.27,126.04854445]
[1737701050211,9.11103017,261.44,261.32,3.8272]
[1737701050405,9.11103017,261.44,261.28,2.5001]
[1737701050715,3.8265,261.38,261.28,2.5001]
[1737701050913,9.11103017,261.44,261.28,2.5001]
[1737701051109,9.11103017,261.4,261.28,2.5001]
[1737701051411,0.02810969,261.39,261.33,0.02919472]
[1737701054115,3.8269,261.35,261.33,0.02919472]
[1737701054311,0.02810969,261.39,261.25,3.8281]
[1737701054515,9.11103017,261.4,261.25,3.8281]
[1737701054816,9.11103017,261.4,261.22,3.88]
[1737701055014,3.8271,261.34,261.23,3.8284]
[1737701055218,9.11103017,261.4,261.24,1.5348]
[1737701055515,0.02772916,261.31,261.24,1.21108]
[1737701057217,3.8275,261.3,261.24,1.21108]
[1737701057619,0.02772916,261.31,261.24,1.21108]
[1737701058921,9.11103017,261.4,261.24,1.21108]
[1737701059223,9.11103017,261.4,261.24,5.03938]
[1737701059521,9.11103017,261.4,261.25,1.3016]
[1737701059724,9.11103017,261.4,261.24,1.21108]
[1737701059923,3.8269,261.35,261.25,3.8282]
[1737701060225,0.02496239,261.35,261.29,0.02881364]
[1737701064419,3.8271,261.33,261.29,0.02881364]
[1737701064624,0.02496239,261.35,261.29,0.02881364]
[1737701064924,3.827,261.34,261.29,0.02881364]
[1737701065122,0.02496239,261.35,261.29,0.02881364]
[1737701065524,3.8274,261.31,261.29,0.02881364]
[1737701067329,3.8272,261.32,261.29,0.02881364]
[1737701068123,3.8275,261.3,261.29,0.02881364]
[1737701069026,0.02496239,261.35,261.29,0.02881364]
[1737701069529,3.8275,261.31,261.29,0.02881364]
[1737701070125,3.8275,261.3,261.29,0.02881364]
[1737701071732,9.11103017,261.32,261.18,0.31796]
[1737701071933,3.8284,261.25,261.18,4.14716]
[1737701072435,9.11103017,261.32,261.18,4.14716]
[1737701072436,9.11103017,261.28,261.18,0.31796]
[1737701072636,3.8286,261.23,261.18,0.31796]
[1737701072826,9.11103017,261.32,261.18,0.31796]
[1737701073130,0.02940376,261.23,261.18,0.31796]
[1737701073534,9.11103017,261.32,261.18,0.31796]
[1737701073829,9.11103017,261.32,261.18,0.34396314]
[1737701074133,3.8279,261.28,261.19,3.8291]
[1737701074335,153.05829525,261.34,261.18,0.34396314]
[1737701074635,153.05829525,261.34,261.18,0.31796]
[1737701074834,0.02798451,261.29,261.23,0.02483253]
[1737701081535,0.02798451,261.29,261.21,8.08993117]
[1737701081740,0.02798451,261.29,261.24,3.8284]
[1737701082237,0.02798451,261.29,261.27,5.84704631]
[1737701082440,3.8269,261.35,261.27,5.84704631]
[1737701083539,0.02408806,261.34,261.28,0.02798348]
[1737701083932,3.85108806,261.34,261.28,0.02798348]
[1737701085742,3.8272,261.33,261.28,0.02798348]
[1737701087643,0.02408806,261.34,261.28,0.02798348]
[1737701089145,3.8275,261.3,261.28,0.02798348]
[1737701089447,5.84704631,261.3,261.28,0.02798348]
[1737701090538,3.8277,261.29,261.28,0.02798348]
[1737701093246,9.67424631,261.33,261.28,0.02798348]
[1737701093441,5.84704631,261.33,261.29,8.39140548]
[1737701094345,5.84704631,261.33,261.3,8.39140548]
[1737701094543,5.84704631,261.33,261.29,8.39140548]
[1737701094748,0.02408806,261.34,261.3,8.39140548]
[1737701095047,0.02408806,261.34,261.31,8.39140548]
[1737701095246,0.02408806,261.34,261.32,8.39140548]
[1737701095447,0.02408806,261.34,261.31,8.39140548]
[1737701095647,0.02408806,261.34,261.32,8.39140548]
[1737701095843,0.02408806,261.34,261.33,8.39140548]
[1737701096058,5.84704631,261.42,261.33,8.39140548]
[1737701096248,5.84704631,261.42,261.34,8.39140548]
[1737701096550,5.84704631,261.42,261.35,8.39140548]
[1737701096751,5.84704631,261.42,261.31,8.39140548]
[1737701096953,5.84704631,261.42,261.32,8.39140548]
[1737701097248,0.02495232,261.4,261.34,0.02625943]
[1737701097553,0.02495232,261.4,261.35,8.39140548]
[1737701097853,0.02495232,261.4,261.36,8.39140548]
[1737701098054,0.02495232,261.4,261.35,8.39140548]
[1737701098950,0.02495232,261.4,261.36,8.39140548]
[1737701099151,0.02495232,261.4,261.35,8.39140548]
[1737701099352,5.84704631,261.39,261.34,0.02625943]
[1737701099647,5.84704631,261.36,261.34,0.02625943]
[1737701099852,9.67384631,261.36,261.34,0.02625943]
[1737701100356,5.84704631,261.36,261.34,0.02625943]
[1737701100554,1.2314,261.49,261.34,0.02625943]
[1737701100555,158.36346412,261.58,261.34,0.02625943]
[1737701100760,5.84704631,261.52,261.44,5.84704631]
[1737701100959,5.84704631,261.55,261.44,5.84704631]
[1737701101161,5.84704631,261.55,261.47,5.84704631]
[1737701101959,0.02907498,261.54,261.48,0.02856533]
[1737701102259,3.8242,261.53,261.48,0.02856533]
[1737701103054,3.8242,261.53,261.45,5.84704631]
[1737701103255,5.84704631,261.55,261.45,5.84704631]
[1737701103653,12.11717573,263.75,261.49,9.11410703]
[1737701103654,9.11410703,261.68,261.49,9.11410703]
[1737701103860,3.8227,261.64,261.5,1.3346]
[1737701104256,0.02912647,261.6,261.54,0.02553099]
[1737701105858,0.02912647,261.6,261.54,2.85493099]
[1737701106261,153.05829525,261.74,261.57,9.11410703]
[1737701106563,21.22067548,261.76,261.61,9.11410703]
[1737701107164,3.8216,261.71,261.61,9.11410703]
[1737701107365,21.22067548,261.76,261.62,1.2469]
[1737701107562,0.02632817,261.71,261.66,0.02691297]
[1737701107768,21.22067548,261.76,261.69,9.11410703]
[1737701108257,166.38790228,261.86,261.69,9.11410703]
[1737701108462,9.11410703,261.82,261.66,0.02691297]
[1737701108659,9.11410703,261.82,261.65,12.97410703]
[1737701108970,0.02732465,261.77,261.71,0.02783111]
[1737701109164,3.8208,261.76,261.71,0.02783111]
[1737701109472,0.02732465,261.77,261.71,0.02783111]
[1737701110065,3.8212,261.74,261.71,0.02783111]
[1737701112071,0.02732465,261.77,261.71,0.02783111]
[1737701112466,0.02732465,261.77,261.71,3.84933111]
[1737701112665,162.17240228,261.94,261.73,9.11410703]
[1737701112867,162.17240228,261.94,261.78,9.11410703]
[1737701113071,3.8187,261.91,261.78,9.11410703]
[1737701113374,3.8187,261.91,261.79,1.2223]
[1737701113871,0.02824586,261.88,261.86,12.93340703]
[1737701114177,11.63470703,262.03,261.86,9.11410703]
[1737701114373,9.11410703,261.99,261.82,9.11410703]
[1737701115065,9.11410703,261.95,261.79,1.2223]
[1737701115273,9.11410703,261.9,261.88,2.848e-05]
[1737701115466,2.5267,261.89,261.88,2.848e-05]
[1737701115665,6.3456,261.89,261.88,2.848e-05]
[1737701118481,3.8213,261.73,261.68,1.6532]
[1737701118670,14.56185525,261.85,261.68,1.6532]
[1737701118975,14.56185525,261.85,261.71,0.33428]
[1737701119275,3.821,261.75,261.71,0.33428]
[1737701119474,14.56185525,261.85,261.71,0.33428]
[1737701119773,0.02480254,261.76,261.71,0.33428]
[1737701119974,0.02480254,261.76,261.75,0.02708027]
[1737701121373,3.8196,261.85,261.75,3.84798027]
[1737701121573,2.5267,261.89,261.75,0.02708027]
[1737701121974,3.8204,261.8,261.75,0.02708027]
[1737701122180,2.5267,261.89,261.75,0.02708027]
[1737701122373,14.56185525,262.03,261.78,14.56185525]
[1737701122580,3.8177,261.98,261.86,3.8193]
[1737701122780,1.2683,262.07,261.83,14.56185525]
[1737701123681,3.8175,261.99,261.92,0.02799251]
[1737701123883,0.02782572,261.98,261.92,0.02799251]
[1737701124373,0.02782572,261.98,261.93,14.56185525]
[1737701124578,2.83,262.2,261.94,2.5826]
[1737701124779,2.83,262.2,261.98,14.56185525]
[1737701125171,1.288,262.23,262.03,14.56185525]
[1737701125572,1.288,262.23,262.1,0.02637299]
[1737701125773,0.02444938,262.16,262.1,0.02637299]
[1737701125981,3.8155,262.13,262.1,0.02637299]
[1737701126373,0.02444938,262.16,262.1,0.02637299]
[1737701126579,0.02444938,262.16,261.98,14.56185525]
[1737701126879,14.56185525,262.22,261.98,14.56185525]
[1737701127174,3.8152,262.15,261.98,14.56185525]
[1737701127479,14.56185525,262.22,261.98,14.56185525]
[1737701127672,0.02911935,262.09,262.04,0.02858235]
[1737701127872,0.02911935,262.09,262.03,14.56185525]
[1737701128076,0.02821268,262.06,262.03,14.56185525]
[1737701128275,1.288,262.23,262.03,14.56185525]
[1737701128879,153.05829525,262.35,262.09,14.56185525]
[1737701129079,153.05829525,262.35,262.14,14.56185525]
[1737701129280,0.02448009,262.24,262.19,0.02746246]